bitfinex/quotes_BTCUSD_20260310
["timestamp","ask_amount","ask_price","bid_price","bid_amount"]
[1773117037977,0.03,69827.0,69819.0,0.00144]
[1773117038184,0.04673057,69827.0,69819.0,0.00144]
[1773117038405,0.04673057,69827.0,69819.0,0.0730537]
[1773117038979,0.04773057,69827.0,69819.0,0.0730537]
[1773117039182,0.001,69827.0,69819.0,0.0730537]
[1773117039426,0.07160759,69825.0,69819.0,0.00144]
[1773117039721,0.03,69823.0,69820.0,0.00144]
[1773117040805,0.03,69822.0,69815.0,0.07181776]
[1773117041002,0.03,69822.0,69816.0,0.00144]
[1773117041188,0.03,69818.0,69809.0,0.17087827]
[1773117041423,0.03,69816.0,69810.0,0.00144]
[1773117041622,0.03,69816.0,69810.0,0.07306297]
[1773117042690,0.03,69816.0,69810.0,0.07326297]
[1773117043852,0.03,69824.0,69810.0,0.07326297]
[1773117044046,0.07160252,69830.0,69814.0,0.01575389]
[1773117044250,0.07160252,69830.0,69817.0,0.18586607]
[1773117044469,0.01696135,69836.0,69818.0,0.18730607]
[1773117044675,0.07159749,69835.0,69821.0,0.18586607]
[1773117044923,0.07159749,69835.0,69822.0,0.01719389]
[1773117045168,0.03,69834.0,69822.0,0.01719389]
[1773117046452,0.03,69830.0,69822.0,0.00144]
[1773117047405,0.03,69830.0,69821.0,0.07172518]
[1773117047628,0.03,69830.0,69823.0,0.00144]
[1773117048005,0.03,69830.0,69824.0,0.00144]
[1773117048460,0.10160271,69830.0,69821.0,0.00011364]
[1773117048619,0.03,69826.0,69825.0,0.00144]
[1773117049457,0.03,69826.0,69821.0,0.00011364]
[1773117049635,0.03,69826.0,69825.0,0.00144]
[1773117049963,0.04674134,69829.0,69821.0,0.00011364]
[1773117050175,0.04674134,69829.0,69825.0,0.00144]
[1773117050674,0.04674134,69829.0,69824.0,0.00144]
[1773117051166,0.04674134,69829.0,69816.0,0.07181682]
[1773117051167,0.03,69827.0,69816.0,0.07181682]
[1773117051366,0.03,69827.0,69822.0,0.00144]
[1773117052129,0.0718225,69830.0,69822.0,0.00144]
[1773117052353,0.07159839,69834.0,69823.0,0.01594534]
[1773117052547,0.0717121,69834.0,69824.0,0.07160861]
[1773117052816,0.0717121,69834.0,69823.0,0.0716096]
[1773117053167,0.03,69833.0,69823.0,0.0716096]
[1773117053801,0.03,69833.0,69822.0,0.0730498]
[1773117054582,0.03,69831.0,69822.0,0.0730498]
[1773117057320,0.10160245,69831.0,69822.0,0.0730498]
[1773117059210,0.05459238,69835.0,69824.0,0.01594534]
[1773117059427,0.00022001,69840.0,69828.0,0.1895843]
[1773117059658,0.07181235,69840.0,69831.0,0.01594534]
[1773117060082,0.07181332,69839.0,69831.0,0.01594534]
[1773117060282,0.00022001,69832.0,69831.0,0.01594534]
[1773117060699,0.00022001,69832.0,69829.0,0.00144]
[1773117061118,0.00022001,69832.0,69824.0,0.0717213]
[1773117061119,0.01700495,69831.0,69827.0,0.00144]
[1773117061338,0.03,69830.0,69827.0,0.00144]
[1773117061933,0.10160303,69830.0,69826.0,0.00144]
[1773117062112,0.03,69828.0,69826.0,0.00144]
[1773117062316,0.03,69828.0,69825.0,0.00144]
[1773117062729,0.00022001,69832.0,69825.0,0.00144]
[1773117062925,0.001,69830.0,69824.0,0.07172231]
[1773117063130,0.001,69830.0,69825.0,0.00144]
[1773117063343,0.03022001,69832.0,69825.0,0.00144]
[1773117063897,0.03022001,69832.0,69825.0,0.07304739]
[1773117064262,0.03,69831.0,69825.0,0.00144]
[1773117065198,0.00022001,69832.0,69825.0,0.00144]
[1773117065913,0.00022001,69832.0,69826.0,0.07160656]
[1773117066691,0.03022001,69832.0,69826.0,0.07160656]
[1773117068019,0.03,69831.0,69825.0,0.00144]
[1773117068219,0.03,69831.0,69825.0,0.0730474]
[1773117068984,0.00022001,69832.0,69825.0,0.0730474]
[1773117069409,0.00022001,69832.0,69825.0,0.09080664]
[1773117069782,0.0715956,69837.0,69827.0,0.18428548]
[1773117069996,0.0715956,69837.0,69828.0,0.18428548]
[1773117070202,0.0715956,69837.0,69829.0,0.01775924]
[1773117070548,0.0715956,69837.0,69829.0,0.01761291]
[1773117071049,0.0715956,69837.0,69825.0,0.0730474]
[1773117071454,0.01774249,69836.0,69825.0,0.00144]
[1773117071669,0.03,69834.0,69826.0,0.00144]
[1773117072556,0.03,69833.0,69826.0,0.00144]
[1773117073364,0.03,69833.0,69827.0,0.00144]
[1773117074543,0.031,69833.0,69827.0,0.00144]
[1773117074745,0.03,69829.0,69810.0,0.0002]
[1773117074989,0.07160041,69832.0,69815.0,0.00144]
[1773117074990,0.01774249,69818.0,69815.0,0.00144]
[1773117075244,0.03,69815.0,69802.0,0.0002]
[1773117075489,0.03,69811.0,69800.0,0.07186306]
[1773117075655,0.03,69811.0,69801.0,0.00144]
[1773117075847,0.03,69811.0,69800.0,0.00023]
[1773117076077,0.03,69811.0,69801.0,0.00144]
[1773117076255,0.04774249,69811.0,69801.0,0.00144]
[1773117076448,0.04774249,69811.0,69800.0,0.00023]
[1773117076688,0.04774249,69811.0,69802.0,0.00144]
[1773117077055,0.03,69809.0,69803.0,0.00144]
[1773117077492,0.03,69809.0,69800.0,0.07186285]
[1773117077698,0.03,69809.0,69801.0,0.00144]
[1773117077910,0.03,69809.0,69797.0,0.07163586]
[1773117078100,0.03,69809.0,69800.0,0.00144]
[1773117078305,0.03,69812.0,69801.0,0.01775924]
[1773117078608,0.03,69812.0,69805.0,0.01775924]
[1773117078774,0.03,69812.0,69806.0,0.00144]
[1773117079976,0.10162134,69812.0,69806.0,0.00144]
[1773117080276,0.03,69810.0,69806.0,0.00144]
[1773117080480,0.03,69808.0,69806.0,0.00144]
[1773117080675,0.03,69808.0,69800.0,0.0716325]
[1773117080898,0.03,69808.0,69801.0,0.00144]
[1773117081436,0.03,69807.0,69802.0,0.00144]
[1773117081783,0.03,69807.0,69803.0,0.00144]
[1773117082394,0.03,69808.0,69803.0,0.00144]
[1773117082629,0.03,69808.0,69800.0,0.0716325]
[1773117082836,0.03,69808.0,69801.0,0.00144]
[1773117083041,0.10162523,69808.0,69799.0,0.07163426]
[1773117083241,0.03,69808.0,69800.0,0.00144]
[1773117083706,0.00022001,69809.0,69800.0,0.00144]
[1773117083909,0.00022001,69809.0,69800.0,0.18572548]
[1773117084646,0.07161953,69814.0,69803.0,0.18428548]
[1773117084856,0.07161953,69814.0,69803.0,0.20204472]
[1773117085049,0.07161953,69814.0,69803.0,0.01775924]
[1773117085724,0.03,69813.0,69803.0,0.01775924]
[1773117087062,0.03,69813.0,69804.0,0.07162913]
[1773117087500,0.03,69812.0,69804.0,0.07162913]
[1773117087794,0.00022001,69816.0,69804.0,0.07162913]
[1773117087795,0.0718372,69816.0,69804.0,0.07162913]
[1773117087982,0.07161719,69816.0,69807.0,0.18428548]
[1773117088197,0.07161719,69816.0,69808.0,0.00144]
[1773117088808,0.03,69815.0,69808.0,0.00144]
[1773117089493,0.10161839,69815.0,69808.0,0.00144]
[1773117090090,0.03,69813.0,69808.0,0.00144]
[1773117090310,0.03,69811.0,69808.0,0.00144]
[1773117091357,0.03,69810.0,69808.0,0.00144]
[1773117091571,0.07161784,69817.0,69808.0,0.07306471]
[1773117091772,0.00010855,69818.0,69809.0,0.01775924]
[1773117091773,0.07172364,69818.0,69809.0,0.01775924]
[1773117091946,0.0716108,69822.0,69811.0,0.01775924]
[1773117092144,0.0716108,69822.0,69814.0,0.01775924]
[1773117092439,0.0716108,69822.0,69815.0,0.00144]
[1773117092659,0.0716108,69822.0,69815.0,0.00129368]
[1773117093251,0.0716108,69822.0,69815.0,0.00114737]
[1773117094749,0.03022001,69823.0,69815.0,0.07276497]
[1773117094927,0.1018298,69823.0,69815.0,0.07276497]
[1773117096371,0.03,69822.0,69815.0,0.07276497]
[1773117096957,0.03022001,69822.0,69815.0,0.07276497]
[1773117097478,0.03,69821.0,69815.0,0.07261865]
[1773117097694,0.00022001,69823.0,69815.0,0.07261865]
[1773117097880,0.00022001,69829.0,69818.0,0.01775924]
[1773117098263,0.00022001,69829.0,69819.0,0.07161374]
[1773117098457,0.00022001,69833.0,69821.0,0.19057277]
[1773117098655,0.00022001,69833.0,69824.0,0.01775924]
[1773117099589,0.10181974,69833.0,69824.0,0.01775924]
[1773117099756,0.03022001,69833.0,69824.0,0.01775924]
[1773117100563,0.03,69832.0,69826.0,0.01873054]
[1773117101670,0.03,69831.0,69827.0,0.01873054]
[1773117101855,0.03,69831.0,69828.0,0.02017054]
[1773117101999,0.00022001,69833.0,69828.0,0.02017054]
[1773117102202,0.00022001,69833.0,69829.0,0.00144]
[1773117102598,0.00022001,69833.0,69828.0,0.07160363]
[1773117102948,0.00022001,69833.0,69829.0,0.00144]
[1773117103152,0.00022001,69833.0,69828.0,0.07160363]
[1773117103356,0.00022001,69833.0,69830.0,0.00144]
[1773117103917,0.03022001,69836.0,69828.0,0.07160363]
[1773117104253,0.03022001,69836.0,69831.0,0.00144]
[1773117104463,0.03022001,69836.0,69828.0,0.07160363]
[1773117104649,0.03022001,69836.0,69832.0,0.00144]
[1773117105477,0.03,69835.0,69832.0,0.00144]
[1773117105757,0.00047951,69839.0,69832.0,0.07303976]
[1773117105914,0.00070001,69845.0,69834.0,0.19057277]
[1773117106114,0.00070001,69845.0,69835.0,0.01873054]
[1773117106319,0.07203236,69850.0,69832.0,0.07303976]
[1773117106320,0.00045001,69850.0,69836.0,0.00144]
[1773117106554,0.00045001,69850.0,69838.0,0.01873054]
[1773117106941,0.00045001,69850.0,69839.0,0.07159323]
[1773117107134,0.10179816,69854.0,69839.0,0.07159323]
[1773117107337,0.03,69852.0,69838.0,0.09032377]
[1773117107583,0.03,69852.0,69836.0,0.00155375]
[1773117107584,0.03,69844.0,69836.0,0.00011375]
[1773117107748,0.03,69842.0,69836.0,0.07170975]
[1773117108043,0.03,69842.0,69837.0,0.00144]
[1773117108261,0.03,69842.0,69836.0,0.00011375]
[1773117108429,0.04948529,69840.0,69838.0,0.00144]
[1773117108635,0.02092529,69850.0,69838.0,0.00144]
[1773117109041,0.07158298,69849.0,69839.0,0.07303323]
[1773117109568,0.03,69848.0,69839.0,0.07303323]
[1773117110784,0.00022001,69842.0,69839.0,0.07303323]
[1773117112324,0.00022001,69849.0,69839.0,0.07303323]
[1773117112536,0.1017979,69854.0,69840.0,0.01873054]
[1773117113265,0.1017979,69854.0,69841.0,0.07159118]
[1773117113684,0.07179643,69856.0,69842.0,0.19057277]
[1773117113888,0.07179643,69856.0,69843.0,0.20930331]
[1773117115017,0.03049851,69855.0,69843.0,0.20930331]
[1773117115817,0.10207564,69855.0,69844.0,0.09031865]
[1773117116018,0.10207564,69855.0,69845.0,0.00144]
[1773117118178,0.10207564,69855.0,69846.0,0.07158606]
[1773117118406,0.27976592,69860.0,69846.0,0.07158606]
[1773117118407,0.00022001,69862.0,69847.0,0.01873054]
[1773117118640,0.07178307,69869.0,69852.0,0.18655919]
[1773117118870,0.07178307,69869.0,69853.0,0.02039458]
[1773117119134,0.07178307,69869.0,69853.0,0.18799919]
[1773117119344,0.21353187,69876.0,69850.0,0.07656335]
[1773117119345,0.03,69889.0,69868.0,0.18655919]
[1773117119614,0.04896508,69885.0,69869.0,0.02039458]
[1773117119855,0.03,69883.0,69869.0,0.01895458]
[1773117120054,0.03,69883.0,69870.0,0.00144]
[1773117120359,0.03,69883.0,69871.0,0.07156044]
[1773117120566,0.03037932,69883.0,69871.0,0.07156044]
[1773117120794,0.03,69882.0,69872.0,0.01895458]
[1773117121307,0.0002785,69886.0,69872.0,0.01895458]
[1773117121510,0.00039222,69886.0,69873.0,0.01895458]
[1773117122222,0.00039222,69886.0,69874.0,0.07155737]
[1773117122426,0.00039222,69886.0,69875.0,0.01895458]
[1773117122630,0.03234816,69919.0,69874.0,0.07155737]
[1773117122631,0.07180851,69901.0,69882.0,0.01895458]
[1773117122837,0.03048,69896.0,69884.0,0.01895458]
[1773117123051,0.03048,69896.0,69882.0,0.00144]
[1773117123052,0.03,69888.0,69882.0,0.00144]
[1773117123239,0.03,69884.0,69882.0,0.00144]
[1773117123822,0.04896508,69884.0,69882.0,0.00144]
[1773117124021,0.03,69884.0,69882.0,0.00144]
[1773117124262,0.03037901,69888.0,69883.0,0.07154815]
[1773117124911,1e-08,69896.0,69883.0,0.07154815]
[1773117125116,1e-08,69896.0,69884.0,0.02039458]
[1773117125403,1e-08,69896.0,69885.0,0.00144]
[1773117125638,0.00022001,69895.0,69886.0,0.00144]
[1773117126051,1e-08,69896.0,69887.0,0.01895458]
[1773117126404,1e-08,69896.0,69888.0,0.09049762]
[1773117127003,1e-08,69896.0,69888.0,0.07154304]
[1773117127231,1e-08,69896.0,69865.0,0.0715663]
[1773117127232,0.03,69895.0,69865.0,0.0715663]
[1773117127597,0.03,69887.0,69867.0,0.19030845]
[1773117127797,0.03,69887.0,69868.0,0.20926303]
[1773117127931,0.03,69887.0,69869.0,0.01895458]
[1773117128341,0.03,69887.0,69868.0,0.19030845]
[1773117128342,0.01896508,69882.0,69868.0,0.00144]
[1773117128551,0.01896508,69882.0,69866.0,0.07156556]
[1773117128552,0.03,69875.0,69865.0,0.07194531]
[1773117128755,0.03,69867.0,69858.0,0.07301322]
[1773117128975,0.07154611,69885.0,69858.0,0.07301322]
[1773117129203,0.19409528,69882.0,69858.0,0.073392]
[1773117129505,0.0198244,69877.0,69858.0,0.071952]
[1773117129797,0.03,69873.0,69860.0,0.02033371]
[1773117129972,0.22409528,69871.0,69858.0,0.071952]
[1773117130175,0.07154611,69885.0,69860.0,0.00144]
[1773117130378,0.0198244,69881.0,69862.0,0.07156966]
[1773117130568,0.0198244,69877.0,69862.0,0.07156966]
[1773117130756,0.0198244,69877.0,69860.0,0.07156966]
[1773117130757,0.0198244,69877.0,69860.0,0.00144]
[1773117130758,0.19409528,69874.0,69860.0,0.00144]
[1773117131013,0.00144,69877.0,69858.0,0.07195194]
[1773117131014,0.19409528,69869.0,69858.0,0.00137878]
[1773117131167,0.22409528,69866.0,69858.0,0.00137878]
[1773117131370,0.03,69862.0,69852.0,0.07301893]
[1773117131595,0.22447406,69862.0,69852.0,0.07301893]
[1773117131921,0.03037878,69862.0,69852.0,0.07301893]
[1773117132478,0.10338867,69862.0,69850.0,0.00023]
[1773117132676,0.10338867,69862.0,69843.0,0.07302848]
[1773117132677,0.03,69852.0,69843.0,0.07302848]
[1773117132891,0.03,69852.0,69844.0,0.07720747]
[1773117133118,0.07338867,69862.0,69845.0,0.02033371]
[1773117133743,0.03,69859.0,69844.0,0.07720747]
[1773117133920,0.03,69853.0,69845.0,0.00144]
[1773117134379,0.07157561,69857.0,69846.0,0.07158606]
[1773117134540,0.07157363,69859.0,69847.0,0.02033371]
[1773117135091,0.07157363,69859.0,69830.0,0.07180173]
[1773117135092,0.03,69854.0,69830.0,0.07180173]
[1773117135267,0.03,69843.0,69830.0,0.07180213]
[1773117135624,0.03,69839.0,69830.0,0.07180217]
[1773117136107,0.03,69839.0,69831.0,0.07160117]
[1773117136714,0.10159365,69839.0,69831.0,0.07160117]
[1773117136932,0.0684478,69839.0,69832.0,0.00039732]
[1773117137733,0.22409528,69837.0,69830.0,0.0002]
[1773117137942,0.22409528,69837.0,69831.0,0.0002]
[1773117138143,0.22409528,69837.0,69825.0,0.07183716]
[1773117138144,0.24391968,69837.0,69825.0,0.07183716]
[1773117138348,0.24391968,69837.0,69826.0,0.19030845]
[1773117138349,0.03,69837.0,69826.0,0.19030845]
[1773117138601,0.03,69837.0,69827.0,0.02033371]
[1773117138823,0.03,69836.0,69829.0,0.02033371]
[1773117138998,0.03011356,69836.0,69829.0,0.02033371]
[1773117139758,0.03,69835.0,69829.0,0.02033371]
[1773117140452,0.0198244,69853.0,69832.0,0.19030845]
[1773117140584,0.02020348,69853.0,69834.0,0.02033371]
[1773117140932,0.03,69850.0,69836.0,0.02033371]
[1773117141631,0.03144,69850.0,69836.0,0.02033371]
[1773117141855,0.03,69850.0,69836.0,0.02033371]
[1773117141989,0.03144,69850.0,69836.0,0.02033371]
[1773117142610,0.03,69850.0,69836.0,0.02033371]
[1773117142816,0.03,69848.0,69836.0,0.09192911]
[1773117143023,0.19409528,69841.0,69827.0,0.07160515]
[1773117143237,0.03,69838.0,69830.0,0.00144]
[1773117144130,0.03,69837.0,69830.0,0.00144]
[1773117145125,0.03,69836.0,69830.0,0.00144]
[1773117146288,0.03,69835.0,69826.0,0.0002]
[1773117146442,0.07159323,69839.0,69816.0,0.07752003]
[1773117146443,0.03,69829.0,69819.0,0.07181289]
[1773117146642,0.00144,69837.0,69819.0,0.07181289]
[1773117146643,0.03,69827.0,69820.0,0.00144]
[1773117146849,0.03,69827.0,69821.0,0.00144]
[1773117147494,0.03,69827.0,69823.0,0.0002]
[1773117147653,0.03,69826.0,69823.0,0.00016]
[1773117148558,0.03,69825.0,69823.0,0.00016]
[1773117149672,0.03,69828.0,69823.0,0.00016]
[1773117149882,0.0498244,69828.0,69821.0,0.00011356]
[1773117150089,0.0498244,69828.0,69822.0,0.00144]
[1773117150467,0.03,69828.0,69822.0,0.00144]
[1773117150672,0.03,69827.0,69822.0,0.00144]
[1773117151313,0.03,69827.0,69819.0,0.07181374]
[1773117151314,0.03,69825.0,69819.0,0.00164]
[1773117151486,0.09143096,69826.0,69815.0,0.00164]
[1773117151487,0.03,69819.0,69815.0,0.00164]
[1773117152438,0.03,69819.0,69816.0,0.0777199]
[1773117152634,0.03,69824.0,69816.0,0.0777199]
[1773117153037,0.07159713,69836.0,69819.0,0.02033371]
[1773117153256,0.07159713,69836.0,69821.0,0.02033371]
[1773117153454,0.07159713,69836.0,69822.0,0.07305066]
[1773117153615,0.07159713,69836.0,69822.0,0.09338437]
[1773117153821,0.03,69835.0,69822.0,0.09338437]
[1773117154026,0.03,69835.0,69822.0,0.00144]
[1773117154349,0.03,69829.0,69821.0,0.00164]
[1773117154565,0.03,69823.0,69817.0,0.00144]
[1773117154701,0.03,69823.0,69816.0,0.07771939]
[1773117154911,0.03,69823.0,69816.0,0.07915939]
[1773117156218,0.03,69822.0,69816.0,0.07915939]
[1773117157293,0.03,69821.0,69816.0,0.07915939]
[1773117158422,0.03,69820.0,69816.0,0.07915939]
[1773117159357,0.03,69824.0,69816.0,0.07915939]
[1773117159759,0.10160867,69824.0,69816.0,0.07915939]
[1773117160358,0.10160867,69824.0,69816.0,0.0061036]
[1773117160359,0.03,69822.0,69816.0,0.0061036]
[1773117160561,0.03,69822.0,69816.0,0.00144]
[1773117160774,0.03,69818.0,69812.0,0.07182059]
[1773117160946,0.05226453,69818.0,69812.0,0.07162059]
[1773117162017,0.05226453,69818.0,69804.0,0.09393011]
[1773117162221,0.02194377,69817.0,69809.0,0.00144]
[1773117162830,0.02194377,69817.0,69812.0,0.0002]
[1773117164105,0.10161374,69819.0,69812.0,0.0002]
[1773117165046,0.001,69817.0,69812.0,0.0002]
[1773117165588,0.03,69819.0,69812.0,0.0002]
[1773117165940,0.031,69819.0,69812.0,0.0002]
[1773117166365,0.10161457,69819.0,69812.0,0.0002]
[1773117166562,0.10261457,69819.0,69812.0,0.0002]
[1773117168615,0.10161457,69819.0,69812.0,0.0002]
[1773117168796,0.10261457,69819.0,69812.0,0.0002]
[1773117169000,0.07243897,69819.0,69812.0,0.0002]
[1773117169151,0.07143897,69819.0,69812.0,0.0002]
[1773117169495,0.07243897,69819.0,69812.0,0.0002]
[1773117170003,0.07143897,69819.0,69812.0,0.0002]
[1773117170342,0.07243897,69819.0,69812.0,0.0002]
[1773117171381,0.07143897,69819.0,69812.0,0.0002]
[1773117171857,0.07243897,69819.0,69812.0,0.0002]
[1773117172371,0.07143897,69819.0,69812.0,0.0002]
[1773117172583,0.07126338,69819.0,69812.0,0.0002]
[1773117172806,0.07226338,69819.0,69812.0,0.0002]
[1773117173223,0.07126338,69819.0,69812.0,0.0002]
[1773117173432,0.07226338,69819.0,69812.0,0.0002]
[1773117174614,0.07126338,69819.0,69812.0,0.0002]
[1773117174949,0.07160938,69824.0,69813.0,0.19436234]
[1773117175161,0.07160938,69824.0,69812.0,0.0002]
[1773117175162,0.00022001,69836.0,69816.0,0.02230201]
[1773117175333,0.00022001,69836.0,69820.0,0.02230201]
[1773117175491,0.02248454,69843.0,69824.0,0.02230201]
[1773117175492,0.07180928,69843.0,69824.0,0.02230201]
[1773117175693,0.07180928,69843.0,69821.0,0.07161169]
[1773117175694,0.21466562,69843.0,69827.0,0.19436234]
[1773117176044,0.03,69841.0,69830.0,0.02230201]
[1773117176217,0.03,69841.0,69831.0,0.00144]
[1773117176398,0.03,69841.0,69831.0,0.02374201]
[1773117177007,0.03,69842.0,69831.0,0.02374201]
[1773117177205,0.03011371,69842.0,69831.0,0.02374201]
[1773117177538,0.03,69839.0,69832.0,0.07160041]
[1773117177904,0.03,69839.0,69827.0,0.07160451]
[1773117178108,0.07159221,69840.0,69827.0,0.07160451]
[1773117178109,0.03,69833.0,69827.0,0.07160451]
[1773117178321,0.03,69833.0,69827.0,0.07304451]
[1773117179102,0.03,69832.0,69827.0,0.07304451]
[1773117179550,0.03,69832.0,69822.0,0.07161066]
[1773117179756,0.03,69832.0,69827.0,0.00144]
[1773117180254,0.03,69831.0,69827.0,0.00144]
[1773117181004,0.03,69831.0,69822.0,0.09281186]
[1773117181205,0.03,69834.0,69823.0,0.00144]
[1773117181406,0.03,69834.0,69826.0,0.08]
[1773117181656,0.03,69834.0,69827.0,0.07304553]
[1773117182070,0.03,69834.0,69828.0,0.0212012]
[1773117182203,0.00022001,69843.0,69829.0,0.19582553]
[1773117182411,0.03022001,69848.0,69832.0,0.0212012]
[1773117182614,0.03022001,69848.0,69835.0,0.19582553]
[1773117182856,0.03022001,69848.0,69837.0,0.0212012]
[1773117183168,0.10180428,69848.0,69837.0,0.19582553]
[1773117183481,0.07158335,69849.0,69840.0,0.0212012]
[1773117183716,0.07158427,69848.0,69840.0,0.09423329]
[1773117184224,0.07158335,69849.0,69840.0,0.09423329]
[1773117186841,0.03,69853.0,69840.0,0.07303209]
[1773117187008,0.03,69853.0,69841.0,0.18240638]
[1773117187332,0.03,69853.0,69843.0,0.0212012]
[1773117187779,0.03,69853.0,69844.0,0.07158811]
[1773117187942,0.03,69852.0,69845.0,0.0212012]
[1773117188146,0.03,69852.0,69846.0,0.00144]
[1773117188348,0.03,69852.0,69846.0,0.0226412]
[1773117188985,0.03,69851.0,69846.0,0.0226412]
[1773117189300,0.0017684,69864.0,69848.0,0.02347485]
[1773117189501,0.0017684,69864.0,69846.0,0.00144]
[1773117189502,0.0003284,69864.0,69852.0,0.02347485]
[1773117189734,0.0003284,69864.0,69850.0,0.22989716]
[1773117189735,0.0003284,69864.0,69855.0,0.02347485]
[1773117190068,0.0003284,69864.0,69857.0,0.02347485]
[1773117190671,0.00070748,69864.0,69857.0,0.02347485]
[1773117191522,0.03,69870.0,69858.0,0.02347485]
[1773117191723,0.03,69870.0,69860.0,0.02347485]
[1773117191724,0.03011368,69870.0,69860.0,0.02347485]
[1773117191892,0.03011368,69870.0,69859.0,0.00144]
[1773117192250,0.05215567,69870.0,69860.0,0.07157171]
[1773117193072,0.03,69869.0,69861.0,0.02347485]
[1773117193534,0.03,69869.0,69860.0,0.07157171]
[1773117193731,0.03,69869.0,69861.0,0.00144]
[1773117194137,0.00011368,69870.0,69862.0,0.07300966]
[1773117195173,0.00011368,69870.0,69862.0,0.07156966]
[1773117196713,0.03,69868.0,69861.0,0.00144]
[1773117197689,0.00011368,69870.0,69861.0,0.00144]
[1773117198259,0.00011368,69870.0,69862.0,0.02347485]
[1773117198662,0.00011368,69870.0,69863.0,0.07156864]
[1773117199059,0.00011368,69870.0,69864.0,0.02347485]
[1773117199507,0.00033369,69870.0,69864.0,0.02347485]
[1773117201756,0.00033369,69870.0,69865.0,0.07156659]
[1773117202502,0.00033369,69870.0,69865.0,0.09504144]
[1773117204403,0.07178715,69875.0,69865.0,0.09504144]
[1773117204404,0.00022001,69877.0,69866.0,0.02347485]
[1773117204615,0.0303284,69883.0,69868.0,0.02347485]
[1773117204824,0.0303284,69883.0,69869.0,0.02347485]
[1773117204825,0.10187691,69883.0,69869.0,0.02347485]
[1773117205900,0.10187691,69883.0,69870.0,0.07156147]
[1773117207968,0.0303284,69883.0,69870.0,0.07156147]
[1773117208128,0.03,69882.0,69871.0,0.02347485]
[1773117208494,0.03,69882.0,69873.0,0.02347485]
[1773117208779,0.03,69882.0,69874.0,0.00144]
[1773117209278,0.03,69881.0,69874.0,0.00144]
[1773117209575,0.03,69881.0,69874.0,0.02491485]
[1773117209875,0.00054841,69883.0,69874.0,0.02491485]
[1773117210026,0.00054841,69883.0,69875.0,0.07155635]
[1773117210450,0.03,69885.0,69875.0,0.07155635]
[1773117210657,0.03,69885.0,69876.0,0.02347485]
[1773117211214,0.00022001,69890.0,69877.0,0.18240638]
[1773117211389,0.03,69892.0,69881.0,0.18240638]
[1773117211588,0.03011364,69892.0,69882.0,0.02491485]
[1773117211762,0.03011364,69892.0,69883.0,0.02491485]
[1773117212164,0.00011364,69892.0,69884.0,0.07154713]
[1773117213383,0.03011364,69892.0,69884.0,0.07154713]
[1773117213729,0.03011364,69892.0,69885.0,0.02347485]
[1773117214302,0.00011364,69892.0,69886.0,0.07154508]
[1773117214506,0.03022002,69896.0,69886.0,0.07154508]
[1773117215226,0.03022002,69896.0,69887.0,0.02347485]
[1773117215375,0.05204199,69892.0,69885.0,0.07298611]
[1773117215578,0.05204199,69892.0,69885.0,0.07309975]
[1773117217343,0.1238012,69892.0,69886.0,0.00144]
[1773117217554,0.03,69888.0,69886.0,0.00144]
[1773117218181,0.03,69888.0,69882.0,0.07154837]
[1773117218380,0.03,69888.0,69883.0,0.02491485]
[1773117218589,0.03022002,69896.0,69883.0,0.02491485]
[1773117218790,0.10175557,69896.0,69883.0,0.02502842]
[1773117219012,0.12379756,69896.0,69883.0,0.02502842]
[1773117219295,0.05226201,69896.0,69883.0,0.02502842]
[1773117219512,0.05226201,69896.0,69884.0,0.07154713]
[1773117219727,0.12379728,69896.0,69884.0,0.07154713]
[1773117220583,0.10175529,69896.0,69884.0,0.07154713]
[1773117221050,0.1254658,69896.0,69884.0,0.07154713]
[1773117222939,0.10175529,69896.0,69884.0,0.07154713]
[1773117223253,0.03,69892.0,69884.0,0.07154713]
[1773117225186,0.03,69892.0,69884.0,0.07174713]
[1773117225382,0.03,69891.0,69884.0,0.07174713]
[1773117226334,0.03,69890.0,69884.0,0.07174713]
[1773117226572,0.00022002,69896.0,69884.0,0.07174713]
[1773117226787,0.09546558,69896.0,69884.0,0.07174713]
[1773117227132,0.07175507,69896.0,69884.0,0.07174713]
[1773117227343,0.03,69893.0,69884.0,0.0002]
[1773117227506,0.03,69891.0,69884.0,0.0002]
[1773117228599,0.03,69890.0,69884.0,0.0002]
[1773117228934,0.071536,69895.0,69884.0,0.0002]
[1773117229554,0.03,69894.0,69884.0,0.0002]
[1773117230148,0.22929391,69892.0,69884.0,0.0002]
[1773117230354,0.03,69886.0,69874.0,0.07155737]
[1773117230555,0.03,69882.0,69875.0,0.00144]
[1773117230852,0.03,69882.0,69874.0,0.07155737]
[1773117230853,0.03011357,69882.0,69876.0,0.00144]
[1773117231466,0.03,69881.0,69876.0,0.00144]
[1773117231666,0.00011357,69882.0,69876.0,0.00144]
[1773117231864,0.00011357,69882.0,69877.0,0.0715543]
[1773117234174,0.00011357,69882.0,69877.0,0.0717543]
[1773117236802,0.0715406,69891.0,69877.0,0.0717543]
[1773117237513,0.02357648,69889.0,69877.0,0.0717543]
[1773117237865,0.0729806,69891.0,69877.0,0.0717543]
[1773117237866,0.03,69886.0,69877.0,0.0002]
[1773117238064,0.03,69882.0,69878.0,0.00144]
[1773117238272,0.03,69880.0,69878.0,0.00144]
[1773117239025,0.17159504,69890.0,69878.0,0.00144]
[1773117239230,0.02357648,69890.0,69878.0,0.07299264]
[1773117239453,0.03,69890.0,69878.0,0.07299264]
[1773117239657,0.03,69890.0,69878.0,0.09648313]
[1773117240599,0.03,69887.0,69877.0,0.0002]
[1773117240759,0.03,69881.0,69877.0,0.00144]
[1773117240957,0.05357648,69879.0,69877.0,0.00144]
[1773117241157,0.03,69879.0,69874.0,0.07155737]
[1773117241344,0.03,69879.0,69877.0,0.00144]
[1773117241973,0.03,69880.0,69878.0,0.0002]
[1773117242343,0.05357648,69880.0,69878.0,0.0002]
[1773117243673,0.03,69884.0,69878.0,0.0002]
[1773117244609,0.00144,69888.0,69878.0,0.0002]
[1773117244750,0.03,69890.0,69878.0,0.0002]
[1773117244953,0.07175593,69895.0,69881.0,0.18295141]